[Event "Romanian Rapid Open 2022"]
[Site "Sebes"]
[Date "2022.12.02"]
[Round "1.1"]
[White "Chicarosie, Ioana-Bianca"]
[Black "Jianu, Vlad-Cristian"]
[Result "0-1"]
[ECO "A30"]
[WhiteElo "1815"]
[BlackElo "2516"]
[Annotator "TA"]
[PlyCount "42"]
[EventDate "2022.12.02"]
[EventType "rapid"]
[EventCountry "ROU"]
[SourceTitle "playchess.com"]
[Source "ChessBase"]
[SourceQuality "1"]
[TimeControl "600+5"]

{[%evp 15,42,33,32,26,33,-4,-17,-12,-7,-64,-46,-84,-81,-141,-114,-132,-32,-88,-67,-236,-230,-431,-430,-430,-436,-734,-755,-745,-708]} 1. d4 {[%emt 0:00:02]} Nf6 {[%emt 0:00:02]} 2. Nf3 {[%emt 0:00:03]} e6 {[%emt 0:00:12]} 3. g3 {[%emt 0:00:07]} b6 {[%emt 0:00:35]} 4. Bg2 {[%emt 0:00:07]} Bb7 {[%emt 0:00:02]} 5. O-O {[%emt 0:00:24]} c5 {[%emt 0:00:01]} 6. c4 {[%emt 0:01:03]} cxd4 {[%emt 0:00:03]} 7. Nxd4 {[%emt 0:00:42]} Bxg2 {[%emt 0:00:04]} 8. Kxg2 {[%emt 0:00:02]} Qc7 {[%emt 0:00:18]} 9. Qd3 {[%emt 0:01:31] A30: Symmetrical English: Double Fianchetto and Hedgehog.} Nc6 {[%emt 0:01:20]} 10. Nb5 {[%emt 0:03:12]} (10. Bf4 {is interesting.} Ne5 11. Bxe5 Qxe5 12. Nc3) 10... Qb7 {[%emt 0:00:01]} 11. Qf3 {[%emt 0:01:00] The position is equal.} a6 {[%emt 0:00:20]} (11... d5 $5 {[%cal Ra7a6]}) 12. N5c3 {[%emt 0:00:06] [#]} (12. Nd4 $1 $11) 12... Be7 $146 {[%emt 0:00:11]} ({Predecessor:} 12... O-O-O 13. Be3 Ne5 14. Qxb7+ Kxb7 15. Nd2 Rc8 16. b3 Bb4 17. Bd4 Nc6 18. Bxf6 gxf6 {0-1 (49) Cordi,D (2060)-Van Asseldonk,P (2107) Amantea 2009}) 13. Be3 {[%emt 0:00:17]} O-O {[%emt 0:00:09]} 14. Ne4 {[%emt 0:00:52]} (14. Nd2 $142) 14... Nxe4 {[%emt 0:01:36]} 15. Qxe4 {[%emt 0:00:02]} Bf6 {[%emt 0:00:01]} (15... f5 $17 16. Qf3 b5 17. cxb5 axb5) 16. Nd2 {[%emt 0:00:43]} (16. Nc3 $15) 16... b5 {[%emt 0:00:10][%cal Bb6b5,Bb5c4,Bc4c3,Bc3c2][%mdl 32] aiming for ...bxc4.} ({Much worse is} 16... Bxb2 $6 17. Rab1 f5 18. Qf3 $11) 17. Rab1 $2 {[%emt 0:00:32] [#] Loses the game.} ({White should play} 17. Nb3 $15) 17... bxc4 $19 {[%emt 0:00:15] Strongly threatening ...d5.} 18. b3 $2 {[%emt 0:00:39]} (18. Bc5 d5 19. Qc2) 18... c3 {[%emt 0:00:22] Black is clearly winning.} 19. Nf3 {[%emt 0:00:04]} d5 {[%emt 0:00:01]} 20. Qd3 {[%emt 0:00:06]} (20. Qg4 $142 d4 21. Bf4) 20... Nb4 {[%emt 0:00:03][%csl LRa2,LRd3]} 21. Qd1 {[%emt 0:00:08]} c2 {[%emt 0:00:01] Weighted Error Value: White=0.90/Black=0.15 (very precise)} 0-1

[Event "Romanian Rapid Open 2022"]
[Site "Sebes"]
[Date "2022.12.02"]
[Round "1.2"]
[White "Ardelean, George-Catalin"]
[Black "Cristea, Virgil"]
[Result "1-0"]
[ECO "C42"]
[WhiteElo "2473"]
[BlackElo "1493"]
[Annotator "TA"]
[PlyCount "49"]
[EventDate "2022.12.02"]
[EventType "rapid"]
[EventCountry "ROU"]
[SourceTitle "playchess.com"]
[Source "ChessBase"]
[SourceQuality "1"]
[TimeControl "600+5"]

{[%evp 19,49,26,21,17,29,5,38,17,58,54,61,63,136,119,134,129,231,231,239,240,239,231,347,314,317,278,385,294,456,471,1493,1479]} 1. e4 {[%emt 0:00:05]} e5 {[%emt 0:00:02]} 2. Nf3 {[%emt 0:00:06]} Nf6 {[%emt 0:00:03]} 3. Nxe5 {[%emt 0:00:12]} d6 {[%emt 0:00:02]} 4. Nf3 {[%emt 0:00:03]} Nxe4 {[%emt 0:00:03]} 5. Qe2 {[%emt 0:00:06]} Qe7 {[%emt 0:00:03]} 6. d3 {[%emt 0:00:05]} Nf6 {[%emt 0:00:03]} 7. Bg5 {[%emt 0:00:03]} Qxe2+ {[%emt 0:00:12]} 8. Bxe2 {[%emt 0:00:03]} Be7 {[%emt 0:00:02]} 9. Nc3 {[%emt 0:00:05]} c6 {[%emt 0:00:08] 9...h6 is the hot move.} 10. O-O-O {[%emt 0:00:05]} O-O {[%emt 0:00:03]} 11. Rde1 {[%emt 0:00:04] C42: Petroff Defence: 3 Nxe5 and unusual White 3rd moves.} h6 {[%emt 0:00:18]} 12. Bd2 {[%emt 0:00:07] [#]} Bg4 $146 {[%emt 0:00:10]} ({Predecessor:} 12... Re8 13. Bd1 Bd7 14. h3 Na6 15. g4 Nh7 16. Nd4 Bh4 17. Rxe8+ Rxe8 18. f4 Nc7 {1-0 (54) Pridorozhni,A (2580)-Paravyan,D (2647) Chess.com INT 2021}) 13. h3 {[%emt 0:00:10][%cal Bh2h3,Bh3h4,Bh4g5][%mdl 32] White is slightly better.} Bxf3 {[%emt 0:00:05]} 14. Bxf3 {[%emt 0:00:04]} Re8 {[%emt 0:00:03]} 15. g4 {[%emt 0:00:12] White is much more active. The black rooks are badly placed.} Kf8 {[%emt 0:00:15]} (15... Nbd7 $14) 16. h4 $36 {[%emt 0:00:22][%mdl 2048] White is really pushing.} Nbd7 {[%emt 0:00:11]} 17. g5 {[%emt 0:00:13]} hxg5 {[%emt 0:00:17]} (17... Ng8 $16 18. Bg4 Ne5) 18. hxg5 $18 {[%emt 0:00:05]} Ng8 {[%emt 0:00:03]} 19. Bg4 {[%emt 0:01:20] Prevents d5.} Ne5 {[%emt 0:00:09]} 20. Bd1 {[%emt 0:00:02]} g6 {[%emt 0:03:32]} (20... f5 {was worth a try.} 21. f4 Ng4) 21. f4 {[%emt 0:00:06]} Nd7 {[%emt 0:00:05]} 22. Bg4 {[%emt 0:00:44]} Nb6 {[%emt 0:00:12]} 23. Rh7 {[%emt 0:00:35] [#] And now Ne4 would win.} d5 {[%emt 0:00:23] Against Ne4} (23... f5 $142 24. Bf3 Bd8 25. Rxb7 Rxe1+ 26. Bxe1 Ne7) 24. f5 {[%emt 0:00:21] aiming for fxg6.} gxf5 {[%emt 0:00:15]} (24... Bxg5 $142 25. Rxe8+ Rxe8) 25. Bh5 {[%emt 0:00:05] White took control after the opening.   Weighted Error Value: White=0.14 (very precise) /Black=0.62} ({Weaker is} 25. Bxf5 Bxg5 26. Rxe8+ Rxe8 $16) 1-0

[Event "Romanian Rapid Open 2022"]
[Site "Sebes"]
[Date "2022.12.02"]
[Round "1.3"]
[White "Lup, Constantin-Ionel"]
[Black "Gavrilescu, David"]
[Result "0-1"]
[ECO "A20"]
[WhiteElo "1739"]
[BlackElo "2523"]
[Annotator "TA"]
[PlyCount "76"]
[EventDate "2022.12.02"]
[EventType "rapid"]
[EventCountry "ROU"]
[SourceTitle "playchess.com"]
[Source "ChessBase"]
[SourceQuality "1"]
[TimeControl "600+5"]

{[%evp 9,76,0,0,3,0,0,18,0,1,0,0,0,0,0,0,0,9,-8,8,8,1,-32,-23,-58,0,0,0,0,0,-8,27,8,42,14,60,6,73,0,0,0,0,0,0,0,0,-7,0,0,20,12,65,59,193,-74,-69,-87,-68,-47,-64,-32,-25,-48,-33,-28,-20,-244,-242,-6275,-6203]} 1. c4 {[%emt 0:00:03]} e5 {[%emt 0:00:04]} 2. g3 {[%emt 0:00:02]} c6 {[%emt 0:00:02]} 3. Bg2 {[%emt 0:00:03]} d5 {[%emt 0:00:02]} 4. cxd5 {[%emt 0:00:08]} cxd5 {[%emt 0:00:02]} 5. d4 {[%emt 0:00:07]} e4 {[%emt 0:00:02]} 6. a3 {[%emt 0:00:07] A20: English Opening: 1...e5.} Be7 {[%emt 0:00:16]} 7. Nc3 {[%emt 0:00:07]} Nf6 {[%emt 0:00:07]} 8. Bg5 {[%emt 0:00:11] The position is equal.} Nbd7 {[%emt 0:00:03] [#]} 9. e3 $146 {[%emt 0:00:07]} ({Predecessor:} 9. Bh3 h6 10. Bxd7+ Qxd7 11. Bxf6 Bxf6 12. e3 O-O 13. Nge2 b6 14. Nf4 Bb7 15. Qh5 {0-1 (36) Gottsmann,L (1402)-Lemke,B (1925) GER email 2016}) 9... O-O {[%emt 0:00:04]} 10. Nge2 {[%emt 0:00:05]} h6 {[%emt 0:00:05]} 11. Bxf6 {[%emt 0:00:04]} Nxf6 {[%emt 0:00:03]} 12. O-O {[%emt 0:00:06]} Bf5 {[%emt 0:00:41]} 13. Nf4 {[%emt 0:01:04]} Qd7 {[%emt 0:00:02]} (13... g5 $5 {[%cal Rg5f4]} 14. Nh5 Nxh5 15. Qxh5 Qd7 $11) 14. f3 {[%emt 0:01:01]} g5 {[%emt 0:00:50]} 15. Nfe2 {[%emt 0:02:27]} (15. fxe4 $5 {[%cal Rf4d5]} Bg4 16. Nfe2 Nxe4 17. Bf3 $11) 15... exf3 {[%emt 0:00:03]} 16. Bxf3 {[%emt 0:00:06]} (16. Rxf3 {simplifies} Bg6 17. Qd2 Ne4 18. Nxe4 dxe4 19. Rff1) 16... Bh3 {[%emt 0:00:32]} (16... Qe6 $15) 17. Bg2 $11 {[%emt 0:00:25]} Rae8 {[%emt 0:00:29]} 18. Qd3 {[%emt 0:00:43]} Bd8 {[%emt 0:00:09]} 19. Rae1 {[%emt 0:00:34]} Qe6 {[%emt 0:00:31]} 20. Nc1 {[%emt 0:00:28]} h5 {[%emt 0:00:47]} 21. Nb3 {[%emt 0:01:23]} b6 {[%emt 0:00:10] Prevents Nc5.} (21... h4 $11) 22. Nd2 {[%emt 0:00:15]} (22. Bxh3 $14 Qxh3 23. Re2) 22... h4 {[%emt 0:00:44]} (22... Bxg2 $11 23. Kxg2 Kg7) 23. e4 {[%emt 0:00:25]} ({White should play} 23. gxh4 $16 Kh8 24. e4 (24. hxg5 Rg8 $11) (24. Bxh3 Qxh3 25. Kh1 Ng4 $11) 24... Bxg2 25. Kxg2 dxe4 26. Ndxe4 (26. Ncxe4 Qg4+ 27. Kh1 Nxe4 $14) 26... Qg4+ 27. Qg3 gxh4 28. Qxg4 (28. Nxf6 Qxg3+ 29. hxg3 Rxe1 $11) 28... Nxg4 29. Rf5) 23... Bxg2 {[%emt 0:00:48]} 24. Kxg2 {[%emt 0:00:04] e5 is the strong threat.} dxe4 {[%emt 0:00:51]} 25. Ndxe4 {[%emt 0:00:17]} Nxe4 {[%emt 0:00:04] The board is on fire.} 26. Nxe4 {[%emt 0:00:27][%cal Oe4f6] [#] aiming for Nf6+!} h3+ {[%emt 0:00:09]} 27. Kg1 {[%emt 0:00:11][%cal Oe4f6] Threatens to win with Nf6+!} Qd5 {[%emt 0:00:10] Strongly threatening ...f5.} 28. Re2 {[%emt 0:01:03]} Re6 {[%emt 0:02:12]} (28... f5 $5 29. Nc3 $8 Qd7 $11) 29. Nc3 {[%emt 0:00:13]} Qc6 {[%emt 0:00:01]} (29... Qd6 $11) 30. Ref2 $14 {[%emt 0:00:06]} Rf6 {[%emt 0:00:09] [#]} (30... Qd7 $14) 31. Ne4 $2 {[%emt 0:00:09]} (31. d5 $1 $18 {[%cal Rd5c6]} Rd6 32. dxc6 Rxd3 33. Nb5) 31... Rxf2 $17 {[%emt 0:00:04]} 32. Rxf2 {[%emt 0:00:02]} f5 {[%emt 0:00:10]} 33. Nc3 {[%emt 0:00:07]} Re8 $36 {[%emt 0:00:08][%mdl 2048] Hoping for ...Re1+. White is under pressure.} 34. Re2 {[%emt 0:00:05] Against Re1+} Rxe2 {[%emt 0:00:23]} 35. Qxe2 {[%emt 0:00:02]} Bf6 {[%emt 0:00:01]} 36. d5 {[%emt 0:00:08]} Qc8 {[%emt 0:00:01]} 37. Nd1 {[%emt 0:00:08]} (37. Qd3 $11) 37... Qc5+ $19 {[%emt 0:00:03]} 38. Qf2 $2 {[%emt 0:00:05]} (38. Kf1 Qxd5 39. Ke1) 38... Bd4 {[%emt 0:00:01] Weighted Error Value: White=0.51/Black=0.18 (very precise)} 0-1

[Event "Romanian Rapid Open 2022"]
[Site "Sebes"]
[Date "2022.12.02"]
[Round "1.4"]
[White "Miron, Lucian-Costin"]
[Black "Vajda, Mihaly"]
[Result "1-0"]
[ECO "D02"]
[WhiteElo "2510"]
[BlackElo "1769"]
[Annotator "TA"]
[PlyCount "65"]
[EventDate "2022.12.02"]
[EventType "rapid"]
[EventCountry "ROU"]
[SourceTitle "playchess.com"]
[Source "ChessBase"]
[SourceQuality "1"]
[TimeControl "600+5"]

{[%evp 9,65,22,27,16,16,-7,10,-14,48,45,40,12,38,43,80,81,87,56,88,83,74,62,85,73,99,120,177,173,172,183,183,167,173,124,104,95,78,83,173,175,168,183,185,177,221,144,139,141,147,125,133,118,620,600,995,978,937,781]} 1. Nf3 {[%emt 0:00:03]} d5 {[%emt 0:00:02]} 2. g3 {[%emt 0:00:02]} Nd7 {[%emt 0:00:07]} 3. d4 {[%emt 0:00:03]} Nb6 {[%emt 0:00:03]} 4. Nc3 {[%emt 0:00:21]} Nf6 {[%emt 0:00:09]} 5. Bg2 {[%emt 0:00:06]} Bf5 {[%emt 0:00:19]} 6. O-O {[%emt 0:00:09] D02: 1 d4 d5 2 Nf3 sidelines, including 2...Nf6 3 g3 and 2...Nf6 3 Bf4.} e6 {[%emt 0:00:10] [#]} 7. Bf4 $146 {[%emt 0:00:34]} ({Predecessor:} 7. Nh4 Bg4 8. Qd3 Be7 9. e4 c6 10. Nf3 dxe4 11. Nxe4 Bf5 12. Nxf6+ Bxf6 13. Qe2 {½-½ (62) Rechlis,G (2484)-Postny,E (2583) Israel 2021}) 7... c6 {[%emt 0:00:28]} 8. Nh4 {[%emt 0:00:24] The position is equal.} Bg6 {[%emt 0:00:24]} (8... Bg4 $11) 9. Nxg6 $14 {[%emt 0:00:21]} hxg6 {[%emt 0:00:03]} 10. e4 {[%emt 0:00:01]} dxe4 {[%emt 0:00:10]} 11. Nxe4 {[%emt 0:00:01]} Nfd5 {[%emt 0:00:41]} 12. Bc1 {[%emt 0:00:33]} Be7 {[%emt 0:00:22]} 13. Qe2 {[%emt 0:00:01]} O-O {[%emt 0:00:24]} 14. Rd1 {[%emt 0:00:00]} Nf6 {[%emt 0:00:44]} 15. Nc5 {[%emt 0:00:54][%cal Be4c5,Bc5b3,Bb3a5,Ba5b7][%mdl 32]} Qc8 {[%emt 0:00:43]} 16. Nb3 {[%emt 0:00:08]} Nfd7 {[%emt 0:00:22]} 17. c4 {[%emt 0:00:06]} c5 {[%emt 0:00:10]} (17... Nf6 $16 {was necessary.}) 18. d5 {[%emt 0:00:01]} e5 {[%emt 0:00:26]} 19. d6 $36 {[%emt 0:00:47][%mdl 2048] Inhibits Qc7. White is in control.} Bf6 {[%emt 0:00:14]} 20. Na5 {[%emt 0:00:01]} Rb8 {[%emt 0:00:33]} 21. Qe4 {[%emt 0:00:01]} (21. a4 $18) 21... Bd8 $16 {[%emt 0:00:35]} 22. Nxb7 {[%emt 0:01:13] White is much more active. The black rooks are badly placed.} f5 {[%emt 0:00:11] [#]} 23. Qc6 {[%emt 0:00:02] Threatens to win with Qxc8.} e4 {[%emt 0:00:52]} (23... Bf6 $16) 24. Qxc8 $18 {[%emt 0:00:13]} Rxc8 {[%emt 0:00:28]} 25. Nxd8 {[%emt 0:00:02]} Rfxd8 {[%emt 0:00:04]} 26. Bg5 {[%emt 0:00:05]} Re8 {[%emt 0:00:04]} 27. b3 {[%emt 0:00:04] aiming for f3.} Ne5 {[%emt 0:00:07] Inhibits f3.} 28. h4 {[%emt 0:01:03]} Kf7 {[%emt 0:00:13]} 29. Bf4 {[%emt 0:00:43]} Nbd7 {[%emt 0:00:09]} 30. Bxe5 {[%emt 0:00:33]} Nxe5 {[%emt 0:00:14][%mdl 8192] [#]} (30... Rxe5 $16 31. f3 exf3 32. Bxf3 Nf6) 31. d7 {[%emt 0:00:02] White is clearly winning.} Nd3 {[%emt 0:01:03]} 32. dxc8=Q {[%emt 0:00:15]} Rxc8 {[%emt 0:00:01]} 33. Bf1 {[%emt 0:00:01] Weighted Error Value: White=0.14 (very precise) /Black=0.39} 1-0

[Event "Romanian Rapid Open 2022"]
[Site "Sebes"]
[Date "2022.12.02"]
[Round "1.5"]
[White "Dima, Ioan-Radu"]
[Black "Costachi, Mihnea"]
[Result "0-1"]
[ECO "E60"]
[WhiteElo "1819"]
[BlackElo "2476"]
[Annotator "TA"]
[PlyCount "54"]
[EventDate "2022.12.02"]
[EventType "rapid"]
[EventCountry "ROU"]
[SourceTitle "playchess.com"]
[Source "ChessBase"]
[SourceQuality "1"]
[TimeControl "600+5"]

{[%evp 15,54,-6,28,-25,16,-1,-3,-16,23,0,21,23,22,-58,-55,-83,-75,-83,-81,-78,-88,-85,-84,-138,-139,-219,-192,-429,-406,-641,-661,-656,-602,-539,-513,-489,-470,-2666,-2252,-29989,-6133]} 1. d4 {[%emt 0:00:02]} Nf6 {[%emt 0:00:04]} 2. c4 {[%emt 0:00:02]} g6 {[%emt 0:00:03]} 3. g3 {[%emt 0:00:06]} Bg7 {[%emt 0:00:03]} 4. Bg2 {[%emt 0:00:03]} O-O {[%emt 0:00:04]} 5. Nf3 {[%emt 0:00:03]} d6 {[%emt 0:00:21]} 6. O-O {[%emt 0:00:05]} Nc6 {[%emt 0:00:09]} 7. d5 {[%emt 0:02:57]} Na5 {[%emt 0:00:03]} 8. Nfd2 {[%emt 0:00:01]} c5 {[%emt 0:00:06]} 9. h3 {[%emt 0:00:31] E60: King's Indian: Unusual lines and Fianchetto Variation without Nc3.} (9. Na3 $142) 9... a6 {[%emt 0:00:04][%cal Ba7a6,Ba6b5,Bb5c4,Bc4b3][%mdl 32]} 10. Nc3 {[%emt 0:00:16]} Bd7 {[%emt 0:00:20]} 11. a4 {[%emt 0:01:00] [#] Inhibits b5. The position is equal.} Qb8 $146 {[%emt 0:00:21]} ({Predecessor:} 11... Rb8 12. Re1 b5 13. axb5 axb5 14. cxb5 Bxb5 15. Nxb5 Rxb5 16. Qa4 Qb6 17. Ra3 Rb8 18. e4 Nd7 19. Bf1 Qa6 20. Bxb5 Rxb5 21. Nc4 {1-0 (21) Wallhof,D (1968)-Rey,T (1182) Goch 2012}) 12. e4 {[%emt 0:01:32]} (12. Qc2 $5 {[%cal Rb2b3]}) 12... b5 {[%emt 0:00:03]} 13. axb5 {[%emt 0:00:02]} axb5 {[%emt 0:00:02]} 14. Qe2 {[%emt 0:00:21]} ({White should play} 14. cxb5 $11 Bxb5 15. Nxb5 Qxb5 16. Re1) 14... bxc4 $15 {[%emt 0:00:36]} 15. f4 {[%emt 0:00:47]} Nb3 {[%emt 0:00:37]} (15... Nh5 {is interesting.} 16. Kh2 Bd4 17. Ra3 Nb3) 16. Nxb3 {[%emt 0:00:27]} cxb3 {[%emt 0:01:23]} 17. Rxa8 {[%emt 0:00:02]} Qxa8 {[%emt 0:00:00]} 18. e5 {[%emt 0:00:03]} Ne8 {[%emt 0:00:25]} 19. exd6 {[%emt 0:01:12]} (19. Re1 $142) 19... exd6 {[%emt 0:00:12]} 20. Qe7 {[%emt 0:00:18]} (20. Qc4 $17) 20... Qc8 {[%emt 0:00:11]} 21. Ne4 $2 {[%emt 0:00:44] [#]} (21. g4) 21... Bxh3 $19 {[%emt 0:00:17]} 22. Nxd6 {[%emt 0:00:32]} (22. Re1 $142) 22... Nxd6 {[%emt 0:00:06]} 23. Qxd6 {[%emt 0:00:01]} Bd4+ {[%emt 0:00:12]} 24. Kh2 {[%emt 0:00:09]} Bxg2 {[%emt 0:00:04]} 25. Kxg2 {[%emt 0:00:01]} Rd8 {[%emt 0:00:42] Against f5} 26. Qe7 {[%emt 0:00:29]} (26. Qc6 $142 Qf5 27. d6) 26... Re8 {[%emt 0:00:01]} 27. Qh4 {[%emt 0:00:28]} Qf5 {[%emt 0:00:13] White did not feel at home in the position after the opening.   Weighted Error Value: White=1.17/Black=0.12 (very precise)} (27... Re2+ $142 28. Kf3 Qa6 29. f5 Qd3+ 30. Be3 Rxe3+ 31. Kg2 Re2+ 32. Kh3 {[#]} Rh2+ $3 {[%mdl 512]} 33. Kxh2 Qe2+ 34. Rf2 Qxf2+ 35. Kh3 Qf1+ 36. Kh2 Bg1+ 37. Kh1 Be3+ 38. Kh2 Qg1+ 39. Kh3 Qh1+ 40. Kg4 h5+ 41. Qxh5 gxh5#) 0-1

[Event "Romanian Rapid Open 2022"]
[Site "Sebes"]
[Date "2022.12.02"]
[Round "1.6"]
[White "Anton, Teodor"]
[Black "Sandru, Nicolae"]
[Result "1-0"]
[ECO "E07"]
[WhiteElo "2438"]
[BlackElo "1647"]
[Annotator "TA"]
[PlyCount "58"]
[EventDate "2022.12.02"]
[EventType "rapid"]
[EventCountry "ROU"]
[SourceTitle "playchess.com"]
[Source "ChessBase"]
[SourceQuality "1"]
[TimeControl "600+5"]

{[%evp 15,58,28,39,10,45,35,49,28,45,45,46,42,35,27,33,26,64,68,84,56,53,-73,-64,-62,-63,-41,743,743,728,722,698,679,652,468,1039,1033,1016,995,29985,29986,29988,29989,29989,29990,29995]} 1. d4 {[%emt 0:00:03]} d5 {[%emt 0:00:02]} 2. c4 {[%emt 0:00:02]} e6 {[%emt 0:00:02]} 3. Nf3 {[%emt 0:00:02]} Nf6 {[%emt 0:00:03]} 4. g3 {[%emt 0:00:04]} Be7 {[%emt 0:00:10]} 5. Bg2 {[%emt 0:00:02]} O-O {[%emt 0:00:03]} 6. O-O {[%emt 0:00:03]} Re8 {[%emt 0:00:17]} 7. b3 {[%emt 0:00:08]} c6 {[%emt 0:00:02]} 8. Bb2 {[%emt 0:00:03]} Nbd7 {[%emt 0:00:07]} 9. Nbd2 {[%emt 0:00:02] E07: Closed Catalan: Main Line (5 Nf3 0-0 6 0-0 Nbd7).} Ne4 {[%emt 0:00:03] [#]} 10. Nxe4 $146 {[%emt 0:00:14]} ({Predecessor:} 10. Qc2 f5 11. Rad1 g5 12. Ne5 Nxe5 13. dxe5 Nxd2 14. Qxd2 Bd7 15. cxd5 cxd5 16. Bxd5 {1-0 (34) Fasciglione,M-Bataev,V Italy 1970}) 10... dxe4 {[%emt 0:00:01]} 11. Ne5 {[%emt 0:00:15] With the idea Nxd7. White is slightly better.} (11. Ne1 $5 {[%cal Rg2e4]}) 11... f5 {[%emt 0:00:21]} 12. Nxd7 {[%emt 0:00:11]} Bxd7 {[%emt 0:00:10]} 13. f3 {[%emt 0:00:04]} exf3 {[%emt 0:00:13]} 14. Bxf3 {[%emt 0:00:37]} Bf6 {[%emt 0:00:02]} 15. e4 {[%emt 0:00:11]} fxe4 {[%emt 0:00:12]} 16. Bxe4 {[%emt 0:00:03] aiming for Qh5.} g6 {[%emt 0:00:40] Against Qh5} 17. Qc2 {[%emt 0:00:41][%cal Oe4g6] Threatens to win with Bxg6! White is more active.} Rf8 {[%emt 0:00:14]} 18. Bxg6 {[%emt 0:01:31]} hxg6 $17 {[%emt 0:00:17]} 19. Qxg6+ {[%emt 0:00:03]} Bg7 $1 {[%emt 0:00:02] Hoping for ...Qe7.} 20. d5 {[%emt 0:00:11][%csl Gb2][%cal Rg6g7,Bd4d5,Bd5d6][%mdl 32]} Qe7 {[%emt 0:00:11][%mdl 8192] This costs Black the game.} (20... e5 $15 21. Bxe5 Qe7) 21. d6 $1 $18 {[%emt 0:00:12]} Be8 {[%emt 0:00:39]} 22. Qg4 {[%emt 0:01:11]} ({And not} 22. dxe7 Rxf1+ 23. Rxf1 Bxg6 $17) 22... Rxf1+ {[%emt 0:00:19]} 23. Rxf1 {[%emt 0:00:02][%cal Ba1f1,Bf1f4,Bf4g4][%mdl 32]} Qd7 {[%emt 0:00:10]} 24. Be5 {[%emt 0:00:27]} Kh7 {[%emt 0:00:13] [#]} (24... b5 $142 25. cxb5 cxb5) 25. Qh4+ $1 {[%emt 0:00:10]} ({Inferior is} 25. Bxg7 Qxg7 26. Qxe6 Bd7 $11) 25... Kg8 {[%emt 0:00:04] [#]} 26. Qg5 $1 {[%emt 0:00:03] Rf4 is the strong threat.} Kh7 {[%emt 0:00:07]} 27. Rf4 {[%emt 0:00:09] White mates.} Kg8 {[%emt 0:03:12]} 28. Rg4 {[%emt 0:00:10]} Bg6 {[%emt 0:00:43]} 29. Qxg6 {[%emt 0:00:09]} Qf7 {[%emt 0:00:04] Weighted Error Value: White=0.44/Black=0.46} 1-0

[Event "Romanian Rapid Open 2022"]
[Site "Sebes"]
[Date "2022.12.02"]
[Round "1.7"]
[White "Roncea, Radu"]
[Black "Baratosi, Daniel"]
[Result "0-1"]
[ECO "B07"]
[WhiteElo "1600"]
[BlackElo "2335"]
[Annotator "TA"]
[PlyCount "52"]
[EventDate "2022.12.02"]
[EventType "rapid"]
[EventCountry "ROU"]
[SourceTitle "playchess.com"]
[Source "ChessBase"]
[SourceQuality "1"]
[TimeControl "600+5"]

{[%evp 12,52,33,2,29,-12,6,-74,0,0,0,0,0,-62,-15,-50,-16,0,0,-43,-47,-97,-29,-100,-83,-83,-87,-385,-341,-347,-327,-607,-609,-726,-715,-910,-527,-909,-901,-1515,-1501,-1439,-1211]} 1. d4 {[%emt 0:00:04]} Nf6 {[%emt 0:00:06]} 2. Nf3 {[%emt 0:00:06]} g6 {[%emt 0:00:04]} 3. Nbd2 {[%emt 0:00:08]} Bg7 {[%emt 0:00:06]} 4. c3 {[%emt 0:00:02]} d6 {[%emt 0:00:02]} 5. e4 {[%emt 0:00:02]} O-O {[%emt 0:00:05]} 6. Be2 {[%emt 0:00:10]} c5 {[%emt 0:00:06]} 7. O-O {[%emt 0:00:26]} Qc7 {[%emt 0:00:02] B07: Pirc Defence: Miscellaneous Systems.} 8. dxc5 {[%emt 0:00:41]} dxc5 {[%emt 0:00:11]} 9. Nc4 {[%emt 0:00:26]} (9. Qc2 $11 {remains equal.}) 9... Nc6 {[%emt 0:00:30]} (9... Nxe4 $17 10. Qc2 Nf6) 10. Qc2 $11 {[%emt 0:00:22]} b5 {[%emt 0:00:07]} 11. Ne3 {[%emt 0:00:06] [#]} Rb8 $146 {[%emt 0:00:09]} ({Predecessor:} 11... a6 12. Bd2 Bb7 13. Nd5 Nxd5 14. exd5 Ne5 15. Nxe5 Bxe5 16. f4 Bg7 17. Bf3 Rad8 {0-1 (28) Sullivan,B (1674)-Sorgard,G (1870) Edmonton 2005}) 12. Rb1 {[%emt 0:00:01]} ({White should play} 12. Rd1 $11) 12... e6 {[%emt 0:00:20] Black is more active.} (12... Rd8 $15 {was preferrable.}) 13. a3 {[%emt 0:00:03]} Nh5 {[%emt 0:00:02]} 14. Rd1 {[%emt 0:01:17]} a6 {[%emt 0:00:55]} 15. b3 {[%emt 0:00:28]} Bb7 {[%emt 0:00:36]} 16. Bb2 {[%emt 0:00:06]} (16. Ne1 $1 $15) 16... Rbd8 {[%emt 0:00:13]} (16... Nf4 $17) 17. c4 {[%emt 0:00:12]} (17. Rxd8 $11 Rxd8 18. a4) 17... Nd4 $17 {[%emt 0:00:17]} 18. Nxd4 {[%emt 0:00:14]} cxd4 {[%emt 0:00:06]} 19. Bxd4 {[%emt 0:00:22][%mdl 8192] This move loses the game for White.} Rxd4 {[%emt 0:00:04]} 20. Rxd4 {[%emt 0:00:07]} Bxd4 {[%emt 0:00:02] This pair of bishops is nice.} 21. Nf1 $2 {[%emt 0:00:42]} (21. cxb5 Qxc2 22. Nxc2) 21... Nf4 {[%emt 0:00:16] [#] ...f5 is the strong threat. Black is clearly winning.} 22. Bf3 {[%emt 0:00:08]} f5 {[%emt 0:00:19][%cal Bf7f5,Bf5e4][%mdl 32] Threatens to win with ...fxe4.} 23. Ng3 {[%emt 0:00:15]} Qc5 {[%emt 0:00:09]} 24. Rc1 {[%emt 0:00:23] [#]} Bxf2+ $1 {[%emt 0:00:14][%mdl 512]} 25. Kf1 {[%emt 0:00:21]} (25. Qxf2 Qxf2+) 25... Bxg3 {[%emt 0:00:05]} 26. hxg3 {[%emt 0:00:04]} fxe4 {[%emt 0:00:03] Weighted Error Value: White=1.30/Black=0.48} 0-1